bitfinex-derivatives/quotes_SOLF0:USTF0_20250528
["timestamp","ask_amount","ask_price","bid_price","bid_amount"]
[1748466983679,5.8477,170.96,170.92,0.0399657]
[1748466983874,30.7458,171.01,170.92,0.0399657]
[1748466984480,5.8483,170.95,170.92,0.0399657]
[1748466985784,30.7458,171.01,170.92,5.8888657]
[1748466986085,30.7458,171.01,170.92,0.0399657]
[1748466986286,30.7458,171.01,170.93,5.8486]
[1748466986485,30.7458,171.01,170.92,0.0399657]
[1748466986688,28.86,171.01,170.92,0.0399657]
[1748466986884,5.847,170.98,170.93,5.8486]
[1748466987184,5.847,170.98,170.92,0.0399657]
[1748466988887,5.847,170.98,170.94,5.8481]
[1748466989686,5.8473,170.97,170.93,5.8486]
[1748466991189,28.86,171.01,170.92,5.8888657]
[1748466991392,28.86,171.01,170.92,0.0399657]
[1748466991698,5.8482,170.95,170.92,0.0399657]
[1748466992300,5.8476,170.97,170.93,5.8486]
[1748466992494,28.86,171.01,170.93,5.8486]
[1748466992995,28.86,171.01,170.92,0.0399657]
[1748466993393,30.8665,171.01,170.92,0.0399657]
[1748466993993,5.8486,170.93,170.92,0.0399657]
[1748467026915,5.8483,170.94,170.92,0.0399657]
[1748467027115,30.68,170.97,170.92,0.0399657]
[1748467028117,5.8477,170.96,170.93,5.8483]
[1748467029212,5.8477,170.96,170.94,5.8483]
[1748467030520,5.8474,170.97,170.94,5.8483]
[1748467031122,5.8476,170.96,170.94,5.8483]
[1748467036124,5.8474,170.97,170.94,5.8483]
[1748467037823,32.8453,171.0,170.94,5.8483]
[1748467038731,5.8476,170.97,170.94,5.8483]
[1748467042331,5.8476,170.97,170.94,5.8482]
[1748467043025,5.8476,170.97,170.95,5.8479]
[1748467043831,5.8476,170.97,170.94,5.8482]
[1748467044027,5.8471,170.98,170.92,0.0399657]
[1748467044530,5.8471,170.98,170.95,5.8477]
[1748467045927,5.8474,170.97,170.94,5.8482]
[1748467046530,5.8474,170.97,170.95,5.8479]
[1748467047233,30.8,171.0,170.96,5.8476]
[1748467047429,30.8,171.0,170.96,5.88959836]
[1748467047633,5.8468,170.99,170.96,5.88959836]
[1748467048632,1.9908,171.04,170.96,0.04199836]
[1748467048826,30.2,171.03,170.96,0.04199836]
[1748467049027,30.2,171.03,170.98,5.8467]
[1748467049223,5.846,171.01,170.98,5.8467]
[1748467049523,30.2,171.03,170.98,5.8467]
[1748467049833,30.2,171.03,170.97,5.8471]
[1748467050033,30.2,171.03,170.96,0.04199836]
[1748467050428,5.8473,170.97,170.96,0.04199836]
[1748467075056,30.2,171.0,170.96,0.04199836]
[1748467078051,5.8472,170.98,170.96,0.04199836]
[1748467079159,5.8473,170.97,170.96,0.04199836]
[1748467081965,5.8471,170.98,170.96,0.04199836]
[1748467082668,5.8473,170.97,170.96,0.04199836]
[1748467082969,30.2,171.0,170.96,0.04199836]
[1748467083873,5.8466,170.99,170.96,5.88959836]
[1748467084665,36.0463,171.0,170.97,5.847]
[1748467085266,1.9908,171.04,170.96,0.04199836]
[1748467085867,5.8459,171.01,170.97,5.8471]
[1748467087063,5.8459,171.01,170.98,5.8469]
[1748467087263,5.8456,171.02,170.96,0.04199836]
[1748467087862,5.8456,171.02,170.98,5.8467]
[1748467088071,5.8456,171.02,170.96,0.04199836]
[1748467088375,5.8453,171.03,170.99,5.8464]
[1748467088572,5.8453,171.03,170.99,5.8888687]
[1748467089376,5.8456,171.02,170.99,5.8888687]
[1748467092377,5.8453,171.03,170.99,5.8888687]
[1748467093481,5.8456,171.02,170.99,5.8888687]
[1748467095074,5.8456,171.02,171.0,5.8462]
[1748467095279,5.8453,171.03,171.0,5.8462]
[1748467095678,5.8456,171.02,170.99,5.8888687]
[1748467096181,29.9,171.05,170.99,0.0424687]
[1748467096384,5.8456,171.02,170.99,5.8889687]
[1748467100285,29.9,171.05,170.99,5.8889687]
[1748467100487,5.8455,171.03,170.99,0.0424687]
[1748467100889,5.8455,171.03,171.0,5.846]
[1748467102789,5.845,171.04,171.01,5.8459]
[1748467105695,5.845,171.04,171.02,5.8456]
[1748467105998,5.8449,171.05,170.99,0.0424687]
[1748467106201,5.8449,171.05,171.02,5.8453]
[1748467106594,5.8443,171.06,171.02,5.8453]
[1748467106789,31.946,171.08,171.02,5.8453]
[1748467106790,31.946,171.08,171.03,5.845]
[1748467107689,5.844,171.07,171.03,5.845]
[1748467108387,5.844,171.07,171.04,5.8449]
[1748467113597,5.8443,171.06,171.02,0.0382604]
[1748467113798,30.0,171.08,171.02,0.0382604]
[1748467114290,5.8442,171.07,171.04,5.8449]
[1748467115404,5.8436,171.08,171.05,5.8444]
[1748467115898,5.844,171.07,171.04,5.8448]
[1748467116206,29.98,171.11,171.04,0.03957336]
[1748467116399,5.8443,171.06,171.04,0.03957336]
[1748467116598,29.98,171.11,171.04,0.03957336]
[1748467117506,5.8442,171.07,171.04,0.03957336]
[1748467118015,5.8442,171.07,171.04,5.88427336]
[1748467119005,5.8444,171.06,171.04,0.03957336]
[1748467121702,5.844,171.07,171.04,5.88437336]
[1748467126510,29.98,171.11,171.04,5.88437336]
[1748467127314,29.98,171.11,171.05,5.8446]
[1748467127914,29.98,171.11,171.04,5.88427336]
[1748467129221,5.8443,171.06,171.04,5.88427336]
[1748467129818,5.8446,171.05,171.04,0.03957336]
[1748467130122,29.98,171.11,171.04,0.03957336]
[1748467130419,29.98,171.11,171.04,5.88437336]
[1748467130919,29.98,171.11,171.04,0.03957336]
[1748467131121,5.8439,171.07,171.05,5.8444]
[1748467131320,29.98,171.11,171.05,5.8444]
[1748467132222,5.8439,171.07,171.05,5.8444]
[1748467133822,5.8439,171.07,171.04,0.03957336]
[1748467133823,5.8443,171.06,171.04,5.88437336]
[1748467134028,29.98,171.11,171.04,5.88437336]
[1748467134525,29.98,171.11,171.05,5.8445]
[1748467136926,5.8441,171.07,171.05,5.8445]
[1748467137426,5.8438,171.08,171.05,5.8445]
[1748467137822,29.98,171.11,171.05,5.8445]
[1748467138431,5.844,171.07,171.05,5.8445]
[1748467139026,29.98,171.11,171.04,0.03957336]
[1748467140929,5.8446,171.05,171.04,0.03957336]
[1748467145930,5.8443,171.06,171.04,5.88447336]
[1748467146532,5.8443,171.06,171.04,0.03957336]
[1748467147434,35.4841,171.07,171.04,5.88437336]
[1748467148233,5.85354886,171.15,171.04,29.67957336]
[1748467148433,5.85354886,171.15,171.08,0.04280353]
[1748467148832,5.8424,171.12,171.08,0.04280353]
[1748467149332,5.85354886,171.15,171.08,0.04280353]
[1748467149838,5.8416,171.14,171.1,5.8426]
[1748467150036,5.85354886,171.15,171.1,5.8426]
[1748467150526,5.8422,171.13,171.1,5.8426]
[1748467150732,5.85354886,171.15,171.1,5.8426]
[1748467150937,5.8422,171.13,171.1,5.8426]
[1748467151232,5.85354886,171.15,171.1,5.8426]
[1748467151835,5.85354886,171.15,171.09,5.8431]
[1748467153335,5.8425,171.12,171.09,5.8431]
[1748467153535,5.85354886,171.15,171.09,5.8431]
[1748467154636,5.85354886,171.15,171.08,0.04280353]
[1748467156238,5.8432,171.09,171.08,0.04280353]
[1748467164345,35.47354886,171.15,171.08,0.04280353]
[1748467164942,5.843,171.1,171.08,0.04280353]
[1748467165342,35.47354886,171.15,171.08,0.04280353]
[1748467165845,5.8432,171.09,171.08,0.04280353]
[1748467170847,5.843,171.1,171.08,0.04280353]
[1748467172244,35.47354886,171.15,171.08,5.88630353]
[1748467172441,35.47354886,171.15,171.08,0.04280353]
[1748467173351,5.8421,171.13,171.1,5.8427]
[1748467174350,5.8421,171.13,171.11,5.8425]
[1748467175954,5.8423,171.12,171.1,5.8428]
[1748467176755,5.8423,171.12,171.09,5.8431]
[1748467177348,5.8423,171.12,171.08,0.04280353]
[1748467178454,5.8423,171.12,171.09,5.843]
[1748467179045,5.842,171.13,171.1,5.8427]
[1748467180657,5.8422,171.12,171.1,5.8427]
[1748467181950,35.47354886,171.15,171.1,5.8427]
[1748467182357,5.8422,171.12,171.1,5.8427]
[1748467184560,35.47354886,171.15,171.11,5.8425]
[1748467185555,5.8418,171.14,171.11,5.8425]
[1748467185958,35.47354886,171.15,171.11,5.8425]
[1748467186151,5.8418,171.14,171.11,5.8425]
[1748467186356,5.8418,171.14,171.12,5.8421]
[1748467186659,5.8418,171.14,171.08,29.32280353]
[1748467186957,5.8418,171.14,171.11,5.8424]
[1748467187362,5.8418,171.14,171.11,5.8423]
[1748467188257,5.8419,171.13,171.11,5.8423]
[1748467190665,5.8422,171.12,171.1,5.8427]
[1748467190963,35.47354886,171.15,171.08,29.32280353]
[1748467191164,5.8428,171.11,171.08,35.16600353]
[1748467191461,5.8428,171.11,171.08,29.32280353]
[1748467193163,5.8428,171.11,171.09,5.8431]
[1748467195359,5.8425,171.12,171.08,29.32280353]
[1748467195856,5.8425,171.12,171.09,5.843]
[1748467197358,5.842,171.13,171.08,29.32280353]
[1748467197864,5.842,171.13,171.1,5.8426]
[1748467198660,5.842,171.13,171.08,29.32280353]
[1748467198661,5.842,171.13,171.11,5.8425]
[1748467199960,5.842,171.13,171.1,5.8427]
[1748467202569,5.842,171.13,171.11,5.8425]
[1748467204273,35.47354886,171.15,171.12,5.8422]
[1748467204571,35.47354886,171.15,171.12,5.87939587]
[1748467204870,41.31494886,171.15,171.12,5.87939587]
[1748467205268,35.47354886,171.15,171.12,5.87939587]
[1748467206466,5.8417,171.14,171.12,5.87939587]
[1748467207271,41.31484886,171.15,171.13,5.8419]
[1748467207473,41.31484886,171.15,171.12,0.03719587]
[1748467208573,41.31484886,171.15,171.12,5.87929587]
[1748467208976,41.31484886,171.15,171.12,0.03719587]
[1748467209374,35.47354886,171.15,171.13,5.8417]
[1748467209574,35.47354886,171.15,171.12,0.03719587]
[1748467210876,5.8416,171.14,171.12,5.87929587]
[1748467212476,35.47354886,171.15,171.13,5.8419]
[1748467213277,41.31494886,171.15,171.12,5.87919587]
[1748467213471,11.69494886,171.15,171.12,5.87919587]
[1748467214578,5.8415,171.14,171.12,5.87919587]
[1748467214770,5.85354886,171.15,171.12,5.87919587]
[1748467215168,11.69494886,171.15,171.12,5.87919587]
[1748467216176,5.8416,171.14,171.12,5.87919587]
[1748467216375,5.85354886,171.15,171.14,5.8415]
[1748467218178,5.85354886,171.15,171.12,5.87929587]
[1748467218585,11.69504886,171.15,171.12,0.03719587]
[1748467218884,5.85354886,171.15,171.12,0.03719587]
[1748467219083,5.8418,171.14,171.12,0.03719587]
[1748467220383,5.8419,171.13,171.12,0.03719587]
[1748467222381,5.8416,171.14,171.12,5.87939587]
[1748467222685,5.8416,171.14,171.12,0.03719587]
[1748467223986,5.8416,171.14,171.12,5.87939587]
[1748467227187,11.69504886,171.15,171.12,5.87929587]
[1748467227389,11.69504886,171.15,171.12,0.03719587]
[1748467227592,5.85354886,171.15,171.12,0.03719587]
[1748467227990,5.8419,171.13,171.12,0.03719587]
[1748467230289,5.8416,171.14,171.12,5.87939587]
[1748467230489,5.8416,171.14,171.12,0.03719587]
[1748467233098,11.69484886,171.15,171.12,0.03719587]
[1748467233297,5.85354886,171.15,171.12,0.03719587]
[1748467233697,5.8417,171.14,171.12,0.03719587]
[1748467236308,11.69494886,171.15,171.12,5.87919587]
[1748467236498,11.69494886,171.15,171.12,0.03719587]
[1748467236699,5.85354886,171.15,171.12,0.03719587]
[1748467236903,5.85354886,171.15,171.14,5.8415]
[1748467241699,5.85354886,171.15,171.12,0.03719587]
[1748467242410,5.85354886,171.15,171.13,5.8418]
[1748467242807,5.85354886,171.15,171.14,5.8415]
[1748467244007,5.85354886,171.15,171.13,5.8418]
[1748467244408,5.85354886,171.15,171.12,0.03719587]
[1748467244609,5.85354886,171.15,171.13,5.8419]
[1748467245314,5.85354886,171.15,171.14,5.8415]
[1748467248203,29.12,171.21,171.12,0.03719587]
[1748467248404,29.12,171.21,171.15,0.03775777]
[1748467249615,5.8397,171.2,171.17,5.8404]
[1748467252115,5.8397,171.2,171.18,5.8401]
[1748467252312,34.9593,171.21,171.15,0.03775777]
[1748467252513,29.12,171.21,171.19,5.8397]
[1748467253514,5.8398,171.2,171.17,5.8403]
[1748467254521,5.8398,171.19,171.17,5.8403]
[1748467256210,29.12,171.21,171.17,5.8403]
[1748467257316,5.8396,171.2,171.17,5.8403]
[1748467259321,34.9593,171.21,171.18,5.8401]
[1748467260923,29.12,171.21,171.15,0.03775777]
[1748467261520,29.12,171.21,171.17,5.8402]
[1748467261724,29.12,171.21,171.15,0.03775777]
[1748467262113,34.9593,171.21,171.18,5.8402]
[1748467263122,34.9593,171.21,171.17,5.8404]
[1748467263320,5.8396,171.2,171.17,5.8404]
[1748467268824,29.12,171.21,171.15,0.03775777]
[1748467269032,1.9581,171.2,171.15,0.03775777]
[1748467270028,1.9581,171.2,171.03,11.6904]
[1748467270336,1.9122,171.19,171.03,11.6904]
[1748467270528,5.8425,171.12,171.08,5.8434]
[1748467270930,5.88647889,171.12,171.08,5.88694376]
[1748467271531,5.88647889,171.12,171.09,5.8432]
[1748467272337,5.88647889,171.12,171.08,5.88704376]
[1748467274339,0.04397889,171.12,171.09,5.8432]
[1748467274539,0.04397889,171.12,171.08,0.04354376]
[1748467275136,5.88627889,171.12,171.08,5.88694376]
[1748467277342,5.8427,171.11,171.08,5.88694376]
[1748467279137,5.8427,171.11,171.08,0.04354376]
[1748467279338,0.04397889,171.12,171.08,0.04354376]
[1748467280044,5.8426,171.11,171.08,0.04354376]
[1748467284331,5.8426,171.11,171.08,5.88704376]
[1748467286246,5.88637889,171.12,171.09,5.843]
[1748467286446,0.04397889,171.12,171.08,0.04354376]
[1748467286946,0.04397889,171.12,171.09,5.8431]
[1748467289343,0.04397889,171.12,171.08,0.04354376]
[1748467289943,0.04397889,171.12,171.09,5.8432]
[1748467292059,0.04397889,171.12,171.1,5.8429]
[1748467295259,0.04397889,171.12,171.1,5.8428]
[1748467296868,0.04397889,171.12,171.11,5.8426]
[1748467297162,0.04397889,171.12,171.08,0.04354376]
[1748467297466,5.88627889,171.12,171.09,5.8431]
[1748467298054,5.88627889,171.12,171.1,5.8429]
[1748467298663,0.04397889,171.12,171.1,5.8429]
[1748467299459,0.04397889,171.12,171.11,5.8426]
[1748467300364,0.04397889,171.12,171.1,5.8427]
[1748467300970,0.04397889,171.12,171.11,5.8426]
[1748467312974,0.04397889,171.12,171.1,5.8428]
[1748467314279,0.04397889,171.12,171.11,5.8426]
[1748467326784,7.7392,171.18,171.15,5.841]
[1748467326985,31.0122,171.19,171.07,6.0088]
[1748467327391,5.8408,171.17,171.14,5.8414]
[1748467327785,5.8408,171.17,171.14,5.88292763]
[1748467329388,5.8405,171.18,171.15,5.8411]
[1748467330291,36.8522,171.19,171.15,5.8411]
[1748467331089,5.8402,171.18,171.15,5.8411]
[1748467333287,29.1,171.19,171.14,0.04152763]
[1748467333488,533.88,171.22,171.14,0.04152763]
[1748467335090,5.8394,171.21,171.18,5.84]
[1748467335291,29.1,171.22,171.18,0.04250185]
[1748467335493,34.939,171.22,171.19,5.8396]
[1748467336289,29.1,171.22,171.19,5.8396]
[1748467337599,34.9388,171.22,171.18,0.04250185]
[1748467339092,5.8392,171.21,171.18,0.04250185]
[1748467339300,29.1,171.22,171.18,0.04250185]
[1748467339501,5.8395,171.21,171.18,0.04250185]
[1748467339691,29.1,171.22,171.18,0.04250185]
[1748467340299,5.8394,171.21,171.18,0.04250185]
[1748467341097,34.9391,171.22,171.18,5.88260185]
[1748467341297,34.9391,171.22,171.18,0.04250185]
[1748467341298,5.8391,171.22,171.18,0.04250185]
[1748467341503,5.8387,171.23,171.19,5.8395]
[1748467341904,29.08,171.25,171.19,5.8395]
[1748467342700,5.839,171.22,171.18,5.88260185]
[1748467343008,5.839,171.22,171.18,0.04250185]
[1748467343403,29.08,171.25,171.18,0.04250185]
[1748467343404,5.8392,171.21,171.18,0.04250185]
[1748467343999,5.8392,171.21,171.18,5.88240185]
[1748467345307,5.8392,171.21,171.19,5.8398]
[1748467347303,5.839,171.22,171.19,5.8398]
[1748467348308,5.8386,171.23,171.18,0.04250185]
[1748467348504,29.08,171.25,171.18,0.04250185]
[1748467348914,5.8394,171.21,171.18,5.88250185]
[1748467349108,29.08,171.25,171.18,0.04250185]
[1748467350414,5.8394,171.21,171.18,0.04250185]
[1748467352214,5.8398,171.2,171.18,0.04250185]
[1748467353017,5.8393,171.21,171.18,0.04250185]
[1748467354918,5.8396,171.2,171.18,0.04250185]
[1748467358022,5.8399,171.19,171.18,0.04250185]
[1748467361915,5.8396,171.2,171.18,0.04250185]
[1748467364616,5.8393,171.21,171.18,5.88270185]
[1748467364819,3.8681,171.24,171.18,5.88270185]
[1748467365818,5.8395,171.2,171.18,5.88270185]
[1748467366013,3.8681,171.24,171.18,0.04250185]
[1748467366418,3.8681,171.24,171.18,5.88270185]
[1748467367326,3.8681,171.24,171.18,0.04250185]
[1748467368019,5.8391,171.22,171.18,0.04250185]
[1748467368725,5.8391,171.22,171.19,5.8398]
[1748467372126,5.8385,171.23,171.2,5.8395]
[1748467372518,3.8681,171.24,171.18,0.04250185]
[1748467372719,5.8389,171.22,171.19,5.8397]
[1748467373332,5.8387,171.23,171.19,5.8397]
[1748467375631,5.8387,171.23,171.2,5.8394]
[1748467378833,5.8389,171.22,171.19,5.8398]
[1748467383938,5.8394,171.21,171.18,5.88250185]
[1748467385338,3.8681,171.24,171.18,0.04250185]
[1748467386942,5.8389,171.22,171.19,5.8397]
[1748467387242,5.8389,171.22,171.18,0.04250185]
[1748467387637,5.8389,171.22,171.19,5.8398]
[1748467388939,5.8386,171.23,171.2,5.8395]
[1748467391347,29.08,171.25,171.18,0.04250185]
[1748467391843,5.8384,171.24,171.2,5.8395]
[1748467392939,5.8384,171.24,171.21,5.8391]
[1748467418956,5.8385,171.23,171.21,5.8391]
[1748467420157,5.8383,171.24,171.21,5.8391]
[1748467420356,29.06,171.27,171.2,5.87732356]
[1748467422857,5.8384,171.24,171.2,5.87732356]
[1748467423356,5.8385,171.23,171.2,0.03792356]
[1748467424255,5.8385,171.23,171.2,5.87722356]
[1748467424855,5.8383,171.24,171.21,5.8392]
[1748467426957,5.8385,171.23,171.21,5.8392]
[1748467433957,5.8383,171.24,171.22,5.8387]
[1748467434667,5.8383,171.24,171.21,5.839]
[1748467437164,5.838,171.25,171.22,5.8388]
[1748467437367,29.04,171.29,171.22,0.03740372]
[1748467438069,5.8381,171.25,171.22,0.03740372]
[1748467438267,29.04,171.29,171.22,0.03740372]
[1748467438967,5.838,171.25,171.22,0.03740372]
[1748467441971,5.8382,171.24,171.22,0.03740372]
[1748467444366,29.04,171.29,171.22,0.03740372]
[1748467444971,5.8377,171.26,171.23,5.8385]
[1748467445759,5.8377,171.26,171.24,5.8381]
[1748467446666,5.8377,171.26,171.22,0.03740372]
[1748467446667,5.8377,171.26,171.23,5.8384]
[1748467447071,29.04,171.29,171.22,5.87620372]
[1748467449269,29.04,171.29,171.22,0.03740372]
[1748467449866,29.04,171.29,171.22,5.87600372]
[1748467450465,29.04,171.29,171.23,5.8384]
[1748467451071,5.8377,171.26,171.23,5.8384]
[1748467452276,5.8377,171.26,171.22,0.03740372]
[1748467452277,29.04,171.29,171.22,5.87610372]
[1748467452975,5.838,171.25,171.22,5.87610372]
[1748467453175,29.04,171.29,171.22,0.03740372]
[1748467454073,5.9428,171.28,171.22,0.03740372]
[1748467454271,5.8385,171.23,171.22,0.03740372]
[1748467461683,29.04,171.25,171.12,537.5512]
[1748467461880,29.04,171.25,171.13,5.8418]
[1748467462279,5.8408,171.17,171.13,5.8418]
[1748467462789,5.88003547,171.17,171.13,5.88640018]
[1748467464383,5.841,171.16,171.13,0.04460018]
[1748467464588,0.03923547,171.17,171.13,0.04460018]
[1748467465289,5.8412,171.15,171.13,0.04460018]
[1748467466391,5.8416,171.14,171.13,0.04460018]
[1748467474896,5.8434,171.09,171.04,2.0616]
[1748467475098,5.8434,171.09,171.04,31.1216]
[1748467475490,5.8434,171.09,171.05,5.8444]
[1748467475697,5.8434,171.09,171.04,31.1216]
[1748467475900,0.03843429,171.08,171.05,5.8864393]
[1748467476092,0.03843429,171.08,171.05,0.0418393]
[1748467476897,0.03843429,171.08,171.06,5.8443]
[1748467477392,0.03843429,171.08,171.07,5.844]
[1748467478196,0.03843429,171.08,171.06,5.8442]
[1748467481399,0.03843429,171.08,171.06,5.8443]
[1748467484701,0.03843429,171.08,171.07,5.844]
[1748467500505,5.88203429,171.08,171.05,0.0418393]
[1748467500710,0.03843429,171.08,171.05,0.0418393]
[1748467501507,0.03843429,171.08,171.07,5.844]
[1748467554454,3.429e-05,171.08,171.07,5.844]
[1748467561365,3.429e-05,171.08,171.07,34.884]
[1748467596489,3.429e-05,171.08,171.07,5.844]
[1748467597292,3.429e-05,171.08,171.05,0.0418393]
[1748467597793,3.429e-05,171.08,171.07,5.844]
[1748467598192,3.429e-05,171.08,171.06,5.8443]
[1748467598694,3.429e-05,171.08,171.05,0.0418393]
[1748467599885,3.429e-05,171.08,171.05,5.8864393]
[1748467601692,3.429e-05,171.08,171.05,0.0418393]
[1748467601890,29.36003429,171.08,171.05,0.0418393]
[1748467602798,5.8443,171.07,171.05,0.0418393]
[1748467603497,29.36003429,171.08,171.05,0.0418393]
[1748467604200,5.844,171.07,171.05,0.0418393]
[1748467605398,3.429e-05,171.08,171.05,0.0418393]
[1748467605999,3.429e-05,171.08,171.06,5.8443]
[1748467606395,3.429e-05,171.08,171.05,0.0418393]
[1748467606697,3.429e-05,171.08,171.07,5.844]
[1748467676742,3.429e-05,171.08,171.05,0.0418393]
[1748467677646,3.429e-05,171.08,171.07,5.844]
[1748467690759,3.429e-05,171.08,171.05,0.0418393]
[1748467692058,5.8443,171.06,171.05,0.0418393]
[1748467694364,29.14,171.06,170.98,29.14]
[1748467695359,0.03900573,171.04,171.0,0.04107386]
[1748467695670,5.8455,171.03,171.0,5.88707386]
[1748467696769,0.03900573,171.04,171.0,5.88707386]
[1748467697162,0.03900573,171.04,171.01,5.8458]
[1748467698168,0.03900573,171.04,171.02,5.8456]
[1748467699760,0.03900573,171.04,171.0,0.04107386]
[1748467700264,5.8459,171.02,171.0,0.04107386]
[1748467703559,5.8454,171.03,171.0,5.88737386]
[1748467704466,5.88410573,171.04,171.01,5.8459]
[1748467705071,5.88410573,171.04,171.02,5.8456]
[1748467705368,0.03900573,171.04,171.0,0.04107386]
[1748467705959,0.03900573,171.04,171.03,5.8453]
[1748467710770,29.14,171.09,171.07,5.8436]
[1748467711371,29.14,171.09,171.08,5.8436]
[1748467712374,0.0423396,171.1,171.09,5.8433]
[1748467714867,11.6783,171.22,171.12,5.8421]
[1748467715067,29.14,171.18,171.12,5.8421]
[1748467715673,29.14,171.18,171.06,29.14]
[1748467716073,5.8413,171.15,171.1,0.03937844]
[1748467716279,5.8413,171.15,171.12,5.842]
[1748467716774,29.14,171.18,171.1,0.03937844]
[1748467716775,5.8411,171.16,171.1,0.03937844]
[1748467717277,5.8414,171.15,171.12,5.842]
[1748467717477,29.14,171.18,171.1,0.03937844]
[1748467717976,5.841,171.16,171.13,5.8417]
[1748467718173,5.841,171.16,171.13,5.87984821]
[1748467719771,5.8416,171.14,171.13,0.03814821]
[1748467725078,5.8416,171.14,171.03,35.5274]
[1748467725079,29.14,171.17,171.06,5.8443]
[1748467725382,29.54,171.16,171.06,5.8443]
[1748467725587,5.8436,171.08,171.05,5.8445]
[1748467725780,29.54,171.11,171.03,33.5217]
[1748467726086,0.04189826,171.09,171.05,0.04487139]
[1748467726277,5.8442,171.07,171.05,0.04487139]
[1748467726473,0.04189826,171.09,171.05,0.04487139]
[1748467727878,5.8443,171.06,171.05,0.04487139]
[1748467737193,5.8441,171.07,171.05,0.04487139]
[1748467737398,0.04189826,171.09,171.05,0.04487139]
[1748467738093,5.8438,171.08,171.05,5.88937139]
[1748467744702,5.844,171.07,171.05,0.04487139]
[1748467747002,5.8443,171.06,171.05,0.04487139]
[1748467752104,35.3843,171.06,171.05,0.04487139]
[1748467794240,29.54,171.06,171.05,0.04487139]
[1748467799532,35.3843,171.06,171.05,0.04487139]
[1748467800739,29.54,171.06,171.05,0.04487139]
[1748467807547,35.3843,171.06,171.05,0.04487139]
[1748467815156,5.8443,171.06,171.05,0.04487139]
[1748467817152,29.18,171.07,170.99,1.983]
[1748467817951,5.8448,171.05,170.99,1.983]
[1748467818255,0.0426753,171.04,171.0,0.04071323]
[1748467818457,0.0426753,171.04,171.03,5.8453]
[1748467861904,7.53e-05,171.04,171.03,5.8453]
[1748467874716,7.53e-05,171.04,171.02,5.8455]
[1748467875305,5.8451753,171.04,171.02,5.8455]
[1748467875613,7.53e-05,171.04,171.02,5.8455]
[1748467882320,5.8450753,171.04,171.02,5.8455]
[1748467890028,7.53e-05,171.04,171.02,5.8455]
[1748467894931,7.53e-05,171.04,171.03,5.8453]
[1748467939075,29.08,171.19,171.01,2.043]
[1748467939574,5.8408,171.17,171.13,5.8416]
[1748467939875,5.8408,171.17,171.08,29.08]
[1748467940072,0.04317216,171.14,171.13,5.8419]
[1748467984613,29.08,171.19,171.18,5.8402]
[1748467986209,29.06,171.22,171.17,5.88316476]
[1748467986813,5.8397,171.2,171.17,5.88316476]
[1748467987119,5.8397,171.2,171.18,5.8402]
[1748467989116,5.9294,171.25,171.17,0.04266476]
[1748467989421,29.06,171.24,171.17,0.04266476]
[1748467989617,34.8984,171.24,171.17,0.04266476]
[1748467989814,29.06,171.24,171.17,0.04266476]
[1748467992218,5.8387,171.23,171.2,5.8394]
[1748468003125,5.8387,171.23,171.21,5.8391]
[1748468015638,34.8982,171.24,171.21,5.8391]
[1748468015937,34.8982,171.24,171.21,5.87591203]
[1748468017826,34.8982,171.24,171.22,5.8388]
[1748468018633,29.06,171.24,171.23,5.8385]
[1748468024141,29.06,171.24,171.21,0.03681203]
[1748468024142,29.02,171.27,171.24,5.8379]
[1748468024342,29.02,171.27,171.24,5.87592826]
[1748468025045,34.8573,171.27,171.24,5.87592826]
[1748468025745,34.8573,171.27,171.25,5.8378]
[1748468030344,34.8573,171.27,171.24,0.03802826]
[1748468030345,29.02,171.27,171.26,5.8375]
[1748468031152,29.02,171.27,171.24,0.03802826]
[1748468031153,9.56168297,171.32,171.24,11.71412826]
[1748468031447,44.6955,171.4,171.25,29.02]
[1748468031752,5.8349,171.34,171.31,5.87830351]
[1748468032748,5.8349,171.34,171.31,0.04250351]
[1748468033553,5.8352,171.33,171.31,0.04250351]